fUSD/lending_fUSD_20250410
["ID","MTS","AMOUNT","RATE_DAILY","PERIOD"]
[357648573,1744269044847,-401.0,0.0004199,120]
[357648574,1744269044857,-11981.7704832,0.0004199,2]
[357648575,1744269044866,-13982.60461073,0.0004199,4]
[357648577,1744269045813,-51742.61442117,0.0004199,4]
[357648578,1744269045823,-18593.0520676,0.0004199,2]
[357648579,1744269045832,-151.73,0.0004199,2]
[357648580,1744269045842,-151.73,0.0004199,2]
[357648581,1744269045851,-153.876903,0.0004199,14]
[357648582,1744269045861,-151.041015,0.00041998,120]
[357648583,1744269045870,-1000.7157,0.00041999,2]
[357648584,1744269045880,-1000.0,0.00041999,2]
[357648585,1744269045889,-150.0,0.00041999,120]
[357648586,1744269045899,-982.65031864,0.00041999,120]
[357648587,1744269045908,-166.56095123,0.00041999,120]
[357648588,1744269045918,-13497.49098509,0.00042,5]
[357648589,1744269045934,-32913.2053187,0.00042,5]
[357648594,1744269092703,157.91,0.00033662,2]
[357648595,1744269112114,150.0,0.0003,2]
[357648602,1744269911194,11447.35121876,0.000154,2]
[357648603,1744269928696,762.58386751,0.00011,2]
[357648604,1744269955867,565.83467061,6.94e-05,2]
[357648605,1744269967678,-1198.25176668,0.000154,2]
[357648606,1744269967733,-1583798.35942476,0.0002,2]
[357648610,1744270026207,-240.15,0.00018164,2]
[357648611,1744270026228,-490.60033878,0.000199,2]
[357648612,1744270027086,-522.14651825,0.000199,2]
[357648613,1744270032081,-306.46614571,0.000199,2]
[357648614,1744270046128,-286.00250026,0.000199,2]
[357648615,1744270046154,-1198.25176668,0.0002,2]
[357648616,1744270046176,-5712.62323175,0.00021,2]
[357648618,1744270145093,-300.0,0.00014999,2]
[357648619,1744270145118,-74648.61811568,0.00015,2]
[357648620,1744270145140,-4714.279999,0.000151,2]
[357648621,1744270145161,-555.10069671,0.00018,2]
[357648622,1744270145182,-1183.3466,0.000199,2]
[357648623,1744270145203,-500.0,0.00020973,2]
[357648624,1744270145224,-11932.49605807,0.00021,2]
[357648625,1744270145245,-2493.97767054,0.00021,2]
[357648626,1744270145277,-11415.75246779,0.00021,2]
[357648627,1744270145298,-811.97114892,0.00024,5]
[357648628,1744270151085,-500.0,0.00026452,2]
[357648629,1744270151107,-160.42,0.00026849,2]
[357648630,1744270151128,-302.0,0.00031,2]
[357648631,1744270151148,-2159.0530969,0.0003138,2]
[357648632,1744270151418,-298.394,0.00032,30]
[357648633,1744270151439,-300.98,0.00034063,5]
[357648634,1744270151460,-303.72,0.00034897,5]
[357648635,1744270151482,-150.99,0.00034897,2]
[357648636,1744270151503,-160.94,0.00035,2]
[357648637,1744270151525,-1019.999999,0.00035,2]
[357648638,1744270158070,-301.74,0.00035897,5]
[357648639,1744270158093,-304.59,0.00035897,5]
[357648640,1744270158115,-1666.9023,0.0003659,2]
[357648641,1744270158136,-5661.8461565,0.0003669,2]
[357648642,1744270183325,194.0,0.00031881,2]
[357648658,1744270231778,-305.22,0.00035897,5]
[357648659,1744270231788,-154.84758007,0.00036651,2]
[357648660,1744270231798,-1276.94875989,0.0003669,2]
[357648661,1744270231810,-540.78774977,0.0003669,2]
[357648662,1744270231826,-837.5802589,0.0003669,2]
[357648663,1744270231836,-305.68,0.00036751,5]
[357648664,1744270231846,-456.9337411,0.00036778,2]
[357648665,1744270231859,-67.9549589,0.00036778,2]
[357648666,1744270231869,-154.84758003,0.00036999,2]
[357648667,1744270231879,-378.74606031,0.00037,2]
[357648668,1744270231908,-1752.17786528,0.00037,2]
[357648669,1744270231921,-165.11840441,0.00037161,2]
[357648670,1744270231946,-880.19159559,0.00037161,2]
[357648671,1744270231955,-154.84758003,0.00037347,2]
[357648672,1744270231965,-303.01,0.00037631,5]
[357648673,1744270231976,-154.84758003,0.00037694,2]
[357648675,1744270231985,-133.85943591,0.00038,30]
[357648679,1744270232015,-17.32632991,0.00038,30]
[357648681,1744270232024,-200.0,0.00038,2]
[357648683,1744270232034,-154.84758003,0.00038042,2]
[357648685,1744270232044,-115.25016553,0.0003839,2]
[357648883,1744270234067,301.21,0.0003504,5]
[357649178,1744270237856,-39.5974145,0.0003839,2]
[357649179,1744270237867,-250.0,0.00038395,2]
[357649180,1744270237879,-154.84758003,0.00038738,2]
[357649181,1744270237889,-168.15500552,0.00038805,30]
[357649182,1744270237901,-137.28678448,0.00038805,30]
[357649183,1744270237911,-462.44985689,0.00038838,30]
[357649184,1744270237939,-290.03709306,0.00038838,30]
[357649185,1744270237952,-270.13305005,0.00038838,30]
[357649186,1744270237962,-136.72694792,0.00038994,2]
[357649187,1744270237974,-31.57305208,0.00038994,2]
[357649188,1744270237983,-168.3,0.00039043,2]
[357649189,1744270237993,-154.84758003,0.00039085,2]
[357649190,1744270238003,-168.3,0.00039092,2]
[357649191,1744270238012,-168.3,0.00039141,2]
[357649192,1744270238022,-168.3,0.00039189,2]
[357649193,1744270238032,-790.81341245,0.00039425,2]
[357649194,1744270238045,-254.49658755,0.00039425,2]
[357649195,1744270238054,-200.0,0.00039448,7]
[357649196,1744270238064,-500.0,0.00039671,2]
[357649197,1744270238074,-225.04070335,0.00039708,2]
[357649198,1744270238127,-148.39929665,0.00039708,2]
[357649199,1744270238137,-186.47,0.00039811,2]
[357649200,1744270238146,-681.36290195,0.00039849,2]
[357649201,1744270238158,-318.63709805,0.00039849,2]
[357649202,1744270238170,-118.58416544,0.00039881,2]
[357649203,1744270238182,-131.41583456,0.00039881,2]
[357649204,1744270238192,-150.0,0.0004,2]
[357649205,1744270238201,-215.58415544,0.0004,5]
[357649206,1744270238212,-89.14584456,0.0004,5]
[357649207,1744270238223,-695.35418144,0.0004,4]
[357649208,1744270238235,-286.49996773,0.0004,4]
[357649209,1744270238261,-2736.14585083,0.0004,4]
[357649210,1744270238270,-491.65414915,0.0004,2]
[357649211,1744270238282,-3147.89525311,0.0004,2]
[357649212,1744270238293,-348.23005832,0.0004,2]
[357649215,1744270238320,-4010.74404921,0.0004,2]
[357649217,1744270238329,-1919.21601079,0.0004,15]
[357649219,1744270238339,-340.14203447,0.0004,14]
[357649220,1744270238348,-250.0,0.00040156,2]
[357649222,1744270238357,-250.0,0.00040468,2]
[357649224,1744270238367,-11623.15869902,0.00040872,2]
[357649226,1744270238376,-504.4002376,0.00040873,5]
[357649227,1744270238386,-500.0,0.00040873,5]
[357649228,1744270238395,-513.071,0.00040873,59]
[357649229,1744270238405,-2506.83161102,0.00040882,2]
[357649230,1744270238417,-849.02319621,0.00040882,2]
[357649231,1744270238428,-670.435461,0.00040882,2]
[357649232,1744270238439,-941.57868834,0.00040882,2]
[357649234,1744270238458,-9915.16184526,0.00040882,2]
[357649235,1744270238469,-592.14361496,0.00040882,2]
[357649237,1744270238482,-8424.82558321,0.00040882,2]
[357649239,1744270238491,-394.0,0.00041,14]
[357649241,1744270238500,-163.08,0.00041046,2]
[357649243,1744270238512,-150.0,0.00041096,2]
[357649245,1744270238521,-332.53,0.000413,2]
[357649247,1744270238530,-394.0,0.0004137,90]
[357649249,1744270238540,-1045.31,0.00041689,2]
[357649251,1744270238550,-373.44,0.00041693,2]
[357649253,1744270238559,-1281.0,0.000417,120]
[357649255,1744270238569,-153.041016,0.00041748,120]
[357649257,1744270238578,-151.041016,0.00041788,120]
[357649259,1744270238587,-369.6032,0.000418,2]
[357649261,1744270238596,-163.041016,0.00041848,120]
[357649263,1744270238605,-609.48599947,0.00041888,56]
[357649265,1744270238614,-157.041016,0.00041888,120]
[357649267,1744270238626,-182.30993346,0.0004189,28]
[357649268,1744270238638,-991.1077,0.0004189,2]
[357649270,1744270238649,-11.81306158,0.0004189,2]
[357649273,1744270238662,-844.98523842,0.0004189,2]
[357649275,1744270238673,-1000.0,0.000419,2]
[357649277,1744270238685,-1039.30210288,0.000419,2]
[357649279,1744270238696,-5596.98,0.000419,2]
[357649364,1744270240077,-154.0,0.00041,14]
[357649366,1744270240086,-2614.10488298,0.000419,2]
[357649367,1744270240097,-464.86247294,0.000419,2]
[357649368,1744270240107,-8183.7776412,0.000419,2]
[357649369,1744270240116,-171.68523169,0.000419,5]
[357649370,1744270240125,-173.0853284,0.000419,16]
[357649371,1744270240135,-163.041016,0.00041948,120]
[357649372,1744270240144,-281.0,0.00041976,120]
[357649373,1744270240153,-151.73,0.0004198,2]
[357649374,1744270240162,-281.0,0.00041986,120]
[357649375,1744270240174,-163.041016,0.00041988,120]
[357649376,1744270240184,-720.6737157,0.00041989,31]
[357649377,1744270240193,-303.83632136,0.00041989,31]
[357649378,1744270240202,-720.6737157,0.00041989,31]
[357649379,1744270240211,-720.6737157,0.00041989,31]
[357649380,1744270240220,-720.6737157,0.00041989,31]
[357649381,1744270240229,-720.6737157,0.00041989,31]
[357649383,1744270240238,-720.6737157,0.00041989,31]
[357649385,1744270240247,-720.6737157,0.00041989,31]
[357649387,1744270240256,-720.6737157,0.00041989,31]
[357649389,1744270240265,-720.6737157,0.00041989,31]
[357649391,1744270240275,-720.6737157,0.00041989,31]
[357649393,1744270240284,-720.6737157,0.00041989,31]
[357649395,1744270240293,-720.6737157,0.00041989,31]
[357649397,1744270240302,-151.0,0.0004199,14]
[357649398,1744270240311,-151.0,0.0004199,14]
[357649400,1744270240321,-151.0,0.0004199,14]
[357649402,1744270240331,-242941.856722,0.0004199,4]
[357649404,1744270240340,-122124.75224279,0.0004199,4]
[357649407,1744270240355,-329.15708098,0.0004199,4]
[357649410,1744270240371,-33365.37119513,0.0004199,4]
[357649413,1744270240394,-13678.28889289,0.0004199,4]
[357649416,1744270240410,-6479.34772063,0.0004199,4]
[357649421,1744270242968,-154.84758003,0.00039433,2]
[357649422,1744270242978,-807.52063904,0.0004199,4]
[357649450,1744270244435,-2700.0,0.0004199,4]
[357649451,1744270244450,-2773.95935986,0.0004199,4]
[357649452,1744270244462,-1270.0003,0.0004199,4]
[357649453,1744270244473,-5047.1909532,0.0004199,4]
[357649454,1744270244483,-8621.80687808,0.0004199,4]
[357649455,1744270244498,-6074.60850713,0.0004199,4]
[357649456,1744270244509,-619.819988,0.0004199,4]
[357649494,1744270246047,-3905.30679161,0.0004199,4]
[357649495,1744270246058,-960.67352785,0.0004199,4]
[357649496,1744270246205,-24499.29650024,0.0004199,4]
[357649497,1744270246221,-25595.19999986,0.0004199,4]
[357649499,1744270246236,-50452.98518671,0.0004199,4]
[357649501,1744270246246,-7694.1409813,0.0004199,2]
[357649502,1744270246256,-17287.9509411,0.0004199,2]
[357649503,1744270246266,-151.73,0.0004199,2]
[357649504,1744270246275,-151.73,0.0004199,2]
[357649505,1744270246284,-190.24967947,0.0004199,7]
[357649506,1744270246294,-281.0,0.00041996,120]
[357649507,1744270246303,-1000.0,0.00041999,2]
[357649508,1744270246313,-700.0,0.00041999,120]
[357649509,1744270246322,-700.0,0.00041999,120]
[357649510,1744270246331,-700.0,0.00041999,120]
[357649511,1744270246341,-587.81167085,0.00041999,120]
[357649512,1744270246350,-1023.04848397,0.00041999,10]
[357649513,1744270246359,-150.0,0.00041999,120]
[357649514,1744270246369,-1007.6131,0.00041999,2]
[357649515,1744270246378,-982.65031864,0.00041999,120]
[357649516,1744270246388,-166.56095123,0.00041999,120]
[357649517,1744270246397,-1000.7157,0.00041999,2]
[357649518,1744270246406,-150.0,0.00041999,30]
[357649519,1744270246415,-3363.27534846,0.00042,5]
[357649543,1744270598991,2547.44164614,0.00032,120]
[357649544,1744271139103,-189.06,0.00026849,2]
[357649545,1744271139125,-151.0,0.00031021,2]
[357649546,1744271139146,-189.06,0.00032646,2]
[357649547,1744271139166,-303.07,0.00034188,5]
[357649548,1744271139187,-304.66,0.00035046,5]
[357649549,1744271139208,-303.27,0.00035903,5]
[357649550,1744271139229,-302.63,0.0003676,5]
[357649551,1744271139250,-301.2,0.00037616,5]
[357649552,1744271139270,-189.06,0.00038443,2]
[357649553,1744271139291,-304.2,0.00038475,5]
[357649554,1744271139312,-301.21,0.0003933,5]
[357649555,1744271139333,-420.0,0.0004,120]
[357649556,1744271139353,-1000.0,0.0004,3]
[357649557,1744271139374,-152.0,0.00040079,3]
[357649558,1744271139395,-300.59,0.00040198,5]
[357649559,1744271139417,-954.44,0.00040255,30]
[357649560,1744271139436,-154.84758003,0.00040255,2]
[357649561,1744271139457,-250.0,0.00040355,2]
[357649562,1744271139477,-200.0,0.00040498,7]
[357649563,1744271139498,-155.39,0.00040499,2]
[357649564,1744271139517,-224.06,0.00040499,2]
[357649565,1744271139538,-152.0,0.00040691,4]
[357649566,1744271139559,-1000.0,0.00040782,2]
[357649567,1744271139581,-550.0,0.00040799,5]
[357649568,1744271139602,-10958.81,0.000408,2]
[357649569,1744271139622,-10678.9,0.000408,2]
[357649570,1744271139642,-304.13,0.00040989,5]
[357649571,1744271139664,-502.68662272,0.00041,2]
[357649572,1744271231090,-303.04,0.00036614,5]
[357649573,1744271231112,-301.9,0.0003747,5]
[357649574,1744271231133,-303.51,0.00038327,5]
[357649575,1744271231155,-229.2590258,0.00039192,5]
[357649576,1744271238089,-176.45537527,0.00039133,5]
[357649577,1744271239096,-749.1815777,0.00039133,5]
[357649578,1744271240136,-589.5649215,0.00039133,5]
[357649579,1744271240159,-71.0709742,0.00039192,5]
[357649580,1744271240181,-301.49,0.0004,5]
[357649581,1744271240203,-7009.6931967,0.00041,2]
[357649586,1744271356117,-303.43,0.00035756,5]
[357649587,1744271356139,-303.77,0.00036641,5]
[357649588,1744271357889,305.39,0.00034903,5]
[357649592,1744271375232,303.86,0.00036641,5]
[357649593,1744271393555,144.19925351,0.00036641,5]
[357649594,1744271393577,158.33074649,0.00036641,5]
[357649598,1744271411848,304.08,0.00036641,5]
[357649599,1744271428641,141.19283911,0.00036641,5]
[357649600,1744271428662,160.16716089,0.00036641,5]
[357649603,1744271432046,-304.96,0.00037327,5]
[357649604,1744271432056,-5026.74885871,0.00038327,5]
[357649605,1744271432067,-172.0528667,0.00038826,2]
[357649606,1744271432077,-1044.99,0.00038926,2]
[357649607,1744271432086,-303.53,0.00039048,5]
[357649608,1744271432095,-163.08,0.00040622,2]
[357649609,1744271432105,-2267.49675459,0.00041,2]
[357649610,1744271432116,-306.0,0.00041,2]
[357649611,1744271432128,-17119.55660908,0.00041,2]
[357649612,1744271432137,-410.457,0.00041,59]
[357649613,1744271432147,-296.0,0.00041,14]
[357649614,1744271432156,-154.0,0.00041,14]
[357649615,1744271432170,-349.78,0.00041056,2]
[357649616,1744271432180,-150.0,0.00041096,2]
[357649617,1744271432189,-23900.0,0.00041141,2]
[357649618,1744271432199,-1044.99,0.0004119,2]
[357649619,1744271432208,-152.0,0.00041303,5]
[357649620,1744271432218,-296.0,0.0004137,90]
[357649621,1744271432227,-151.041016,0.00041448,120]
[357649622,1744271432236,-354.0,0.000415,120]
[357649623,1744271432246,-151.041016,0.00041548,120]
[357649624,1744271432255,-158.13203,0.0004158,70]
[357649625,1744271432265,-151.041016,0.00041648,120]
[357649626,1744271432274,-151.041016,0.00041748,120]
[357649627,1744271432283,-166.66,0.00041761,2]
[357649628,1744271432293,-2218.8553,0.0004179,2]
[357649629,1744271432303,-2055.61253538,0.000418,90]
[357649630,1744271432312,-151.041016,0.00041848,120]
[357649632,1744271432321,-410.673988,0.00041873,2]
[357649634,1744271432331,-393.66901821,0.00041873,2]
[357649636,1744271432340,-466.7536,0.0004188,2]
[357649638,1744271432349,-609.48599945,0.0004189,56]
[357649640,1744271432359,-689.93245334,0.0004189,15]
[357649642,1744271432368,-102357.9209,0.0004189,4]
[357649643,1744271432377,-151.73,0.0004189,2]
[357649645,1744271432387,-2500.0,0.0004189,2]
[357649647,1744271432396,-1000.0,0.00041899,2]
[357649649,1744271432406,-212.68542495,0.00041899,31]
[357649651,1744271432415,-467.33208929,0.00041899,31]
[357649653,1744271432424,-967.57886623,0.00041899,31]
[357649655,1744271432433,-967.57886623,0.00041899,31]
[357649657,1744271432442,-967.57886623,0.00041899,31]
[357649659,1744271432452,-967.57886623,0.00041899,31]
[357649661,1744271432461,-967.57886623,0.00041899,31]
[357649663,1744271432472,-967.57886623,0.00041899,31]
[357649665,1744271432482,-967.57886623,0.00041899,31]
[357649667,1744271432491,-967.57886623,0.00041899,31]
[357649669,1744271432500,-967.57886623,0.00041899,31]
[357649671,1744271432509,-967.57886623,0.00041899,31]
[357649673,1744271432519,-967.57886623,0.00041899,31]
[357649675,1744271432528,-967.57886623,0.00041899,31]
[357649676,1744271432537,-967.57886623,0.00041899,31]
[357649678,1744271432547,-967.57886623,0.00041899,31]
[357649680,1744271432556,-177.1324625,0.00041899,31]
[357649682,1744271432566,-1006.28202088,0.00041899,31]
[357649684,1744271432576,-1006.28202088,0.00041899,31]
[357649686,1744271432585,-1006.28202088,0.00041899,31]
[357649688,1744271432595,-1006.28202088,0.00041899,31]
[357649690,1744271432604,-1006.28202088,0.00041899,31]
[357649692,1744271432614,-1006.28202088,0.00041899,31]
[357649694,1744271432623,-1006.28202088,0.00041899,31]
[357649696,1744271432633,-1006.28202088,0.00041899,31]
[357649697,1744271432643,-1066.11500591,0.00041899,31]
[357649698,1744271432652,-1066.11500591,0.00041899,31]
[357649700,1744271432661,-1066.11500591,0.00041899,31]
[357649702,1744271432670,-1066.11500591,0.00041899,31]
[357649704,1744271432680,-1066.11500591,0.00041899,31]
[357649706,1744271432689,-173.0853284,0.00041899,16]
[357649708,1744271432698,-171.68523168,0.000419,5]
[357649710,1744271432708,-10000.0,0.000419,2]
[357649712,1744271432717,-211473.69824207,0.000419,2]
[357649748,1744271433118,-506.56201684,0.000419,2]
[357649761,1744271433579,-8142.6,0.000419,2]
[357649762,1744271433591,-1158.5934276,0.000419,2]
[357649764,1744271438066,-71961.56115613,0.000419,2]
[357649765,1744271438077,-704.93376998,0.000419,2]
[357649766,1744271438106,-805.41699142,0.000419,2]
[357649767,1744271438330,-154.0,0.00041,14]
[357649768,1744271438339,-24261.34227281,0.000419,2]
[357649769,1744271438351,-4907.55959158,0.000419,2]
[357649873,1744271440358,-273.99272375,0.00041898,31]
[357649874,1744271440368,-217.28536722,0.00041898,31]
[357649875,1744271440380,-309.6369,0.00041898,31]
[357649895,1744271445417,-644.6638526,0.00041747,31]
[357649896,1744271445426,-171.38724577,0.00041898,31]
[357649898,1744271445435,-698.30951299,0.00041898,31]
[357649900,1744271445445,-698.30951299,0.00041898,31]
[357649902,1744271445454,-698.30951299,0.00041898,31]
[357649904,1744271445462,-350.66144666,0.00041898,31]
[357649962,1744271446091,-347.64806633,0.00041898,31]
[357649963,1744271446100,-698.30951299,0.00041898,31]
[357649964,1744271446110,-698.30951299,0.00041898,31]
[357649965,1744271446119,-698.30951299,0.00041898,31]
[357649966,1744271446128,-698.30951299,0.00041898,31]
[357649967,1744271446138,-698.30951299,0.00041898,31]
[357649968,1744271446148,-500.0,0.00041898,31]
[357649969,1744271446157,-500.0,0.00041898,31]
[357649970,1744271446166,-500.0,0.00041898,31]
[357649971,1744271446176,-500.0,0.00041898,31]
[357649973,1744271446185,-500.0,0.00041898,31]
[357649975,1744271446430,-400.69553371,0.00041898,31]
[357649977,1744271446439,-500.0,0.00041898,31]
[357649979,1744271446449,-30556.00620064,0.000419,2]
[357649983,1744271446521,-303.3,0.00040937,5]
[357649984,1744271446530,-84074.88701327,0.000419,2]
[357649985,1744271446564,-291.12781345,0.000419,2]
[357649986,1744271446738,-362.63179798,0.000419,2]
[357649987,1744271446772,-10981.5573012,0.000419,2]
[357649988,1744271446782,-152.0,0.00041915,6]
[357649989,1744271446791,-151.041016,0.00041948,120]
[357649990,1744271446800,-225.0,0.0004197,120]
[357649991,1744271446809,-7873.68622306,0.0004197,4]
[357649992,1744271446818,-500.0,0.00041973,10]
[357649993,1744271446828,-500.0,0.00041973,10]
[357649994,1744271446838,-500.0,0.00041973,10]
[357649995,1744271446847,-15747.3724461,0.00041979,4]
[357649996,1744271446857,-225.0,0.0004198,120]
[357649997,1744271446866,-17116.47483407,0.0004198,2]
[357649998,1744271446875,-9650.08007528,0.0004198,2]
[357649999,1744271446884,-720.78717788,0.0004198,2]
[357650000,1744271446893,-110231.607123,0.0004198,4]
[357650001,1744271446903,-20877.0973183,0.0004198,4]
[357650002,1744271446912,-24356.613538,0.00041989,4]
[357650003,1744271446921,-225.0,0.0004199,120]
[357650004,1744271446930,-5219.27432958,0.0004199,4]
[357650005,1744271446940,-190.24967947,0.0004199,7]
[357650006,1744271446949,-151.73,0.0004199,2]
[357650007,1744271446958,-151.73,0.0004199,2]
[357650008,1744271446967,-1000.0,0.00041999,2]
[357650009,1744271446977,-173.09441504,0.00041999,4]
[357650010,1744271446988,-1000.0,0.00041999,2]
[357650011,1744271446999,-1000.0,0.00041999,2]
[357650012,1744271447008,-1000.0,0.00041999,2]
[357650013,1744271447017,-1000.0,0.00041999,2]
[357650014,1744271447027,-1000.0,0.00041999,2]
[357650015,1744271447037,-1000.0,0.00041999,2]
[357650016,1744271447046,-1000.0,0.00041999,2]
[357650017,1744271447056,-1000.0,0.00041999,2]
[357650018,1744271447066,-1000.0,0.00041999,2]
[357650019,1744271447075,-1000.0,0.00041999,2]
[357650020,1744271447084,-1000.0,0.00041999,2]
[357650021,1744271447094,-1000.0,0.00041999,2]
[357650022,1744271447103,-1000.0,0.00041999,2]
[357650023,1744271447112,-1000.0,0.00041999,2]
[357650024,1744271447121,-1000.0,0.00041999,2]
[357650025,1744271447130,-214.00244918,0.00041999,2]
[357650026,1744271447139,-166.56095123,0.00041999,120]
[357650027,1744271447148,-1000.0,0.00041999,2]
[357650028,1744271447157,-6025.3170239,0.00041999,2]
[357650029,1744271447167,-61590.6380764,0.00041999,2]
[357650030,1744271447176,-500.0,0.00041999,120]
[357650031,1744271447185,-500.0,0.00041999,120]
[357650032,1744271447194,-500.0,0.00041999,120]
[357650033,1744271447203,-500.0,0.00041999,120]
[357650034,1744271447213,-500.0,0.00041999,120]
[357650035,1744271447222,-500.0,0.00041999,120]
[357650036,1744271447231,-500.0,0.00041999,120]
[357650037,1744271447240,-18352.335678,0.00041999,2]
[357650038,1744271447250,-1008.3288,0.00041999,2]
[357650039,1744271447260,-151.0,0.00041999,14]
[357650040,1744271447269,-5050.963,0.00041999,2]
[357650041,1744271447279,-1023.04848397,0.00041999,10]
[357650042,1744271447288,-151.0,0.00041999,14]
[357650043,1744271447298,-150.0,0.00041999,30]
[357650044,1744271447307,-151.0,0.00041999,14]
[357650045,1744271447317,-99680.64640801,0.00041999,2]
[357650046,1744271447337,-2043.88837678,0.00041999,2]
[357650047,1744271447348,-3226.99554552,0.00041999,2]
[357650048,1744271447367,-334.99998,0.00041999,2]
[357650049,1744271447378,-672.81426788,0.00041999,2]
[357650050,1744271447388,-12263.8788,0.00041999,2]
[357650051,1744271480288,303.33,0.000362,5]
[357650052,1744271497581,303.9,0.000362,5]
[357650053,1744271534100,21.84419959,0.00036416,5]
[357650057,1744271605458,2099.09215094,0.000145,2]
[357650059,1744271944834,185.0,0.00035,30]
[357650063,1744272346216,1000.0,0.00035,30]
[357650064,1744272379318,1000.0,0.00035,30]
[357650065,1744272394199,1500.0,0.00035,30]
[357650066,1744272412484,2500.0,0.00035,30]
[357650067,1744272432503,391.0,0.00035,30]
[357650068,1744272436167,-272.89,0.00026849,2]
[357650069,1744272436189,-160.34070726,0.00030921,2]
[357650070,1744272436211,-151.0,0.00031021,2]
[357650071,1744272436232,-785.7960121,0.00031021,2]
[357650072,1744272440093,-492.2039879,0.00031021,2]
[357650073,1744272440127,-907.0,0.00031021,2]
[357650074,1744272440154,-1437.0,0.00031021,2]
[357650075,1744272440177,-272.89,0.00032646,2]
[357650076,1744272440200,-310.0791587,0.000345,5]
[357650077,1744272442005,566.05,0.00035,30]
[357650078,1744272493656,250.0,0.00019,2]
[357650079,1744272494734,300.0,0.00021,2]
[357650080,1744272495815,350.0,0.00023,2]
[357650081,1744272548098,-156.57,0.00031543,2]
[357650082,1744272548119,-2110.23153289,0.000342,5]
[357650083,1744272549526,-771.09813617,0.000342,5]
[357650084,1744272549594,-2366.67033094,0.000342,5]
[357650085,1744272549616,-150.99,0.00034402,2]
[357650086,1744272549636,-319.389429,0.00034502,2]
[357650087,1744272562128,-304.39,0.00034676,5]
[357650088,1744272562148,-301.14,0.00034676,5]
[357650089,1744272606881,302.5,0.00034676,5]
[357650090,1744272626774,302.22,0.00034676,5]
[357650096,1744272632719,-303.39,0.00035535,5]
[357650097,1744272632729,-3598.82727071,0.00036384,2]
[357650098,1744272632739,-278.59580041,0.00036416,5]
[357650099,1744272632748,-305.09,0.000371,5]
[357650100,1744272632758,-500.0,0.00037173,2]
[357650101,1744272632767,-1000.0,0.00037199,2]
[357650102,1744272632776,-328.366,0.00037199,47]
[357650103,1744272632786,-237.0,0.00037199,2]
[357650104,1744272632795,-1636.44167594,0.000372,2]
[357650111,1744272638471,-795.83,0.000372,2]
[357650112,1744272638483,-7985.45243005,0.000372,2]
[357650328,1744272640807,-495.5283049,0.000372,2]
[357650741,1744272646078,-304.76,0.00036948,5]
[357650742,1744272646088,-844.8889003,0.000372,2]
[357650743,1744272646237,-7112.7420137,0.000372,2]
[357650744,1744272646249,-1428.84667312,0.000372,2]
[357650745,1744272646276,-291.39443095,0.000372,2]
[357650747,1744272646330,-27.80363177,0.000372,2]
[357651007,1744272732095,303.72,0.00034948,5]
[357651013,1744273002976,1000.0,0.00035,30]
[357651014,1744273021434,499.99,0.00035,30]
[357651016,1744273346625,151.28,0.00017521,2]
[357651017,1744273394208,500.0,0.00035,30]
[357651018,1744273419371,500.0,0.00035,30]
[357651019,1744273426065,500.0,0.00035,30]
[357651020,1744273434708,679.29464341,0.00035,30]
[357651021,1744273508773,498948.72,0.0002,2]
[357651022,1744273529340,532.12277385,0.00011,2]
[357651023,1744273630099,-808.149018,0.00019872,2]
[357651024,1744273630123,-162.71441075,0.00019973,2]
[357651025,1744273630149,-500.0,0.00019973,2]
[357651026,1744273630174,-500.0,0.00019973,2]
[357651027,1744273630199,-850.0,0.00019999,2]